Cogmind - Beta 13 @@@ ROGUE MODE // 2024.04.02 @ 22:03:31 Player: Cheeriohz Result: Destroyed by G-34 Mercenary with Small Laser Performance ------------- Evolutions (0) 0 Regions Visited (2) 400 Robots Destroyed (13) 65 Value Destroyed (285) 285 Prototype IDs (0) 0 Alien Tech Used (0) 0 Bonus (0) 0 TOTAL SCORE: 750 Bonus ------- None Cogmind --------- Core Integrity 0/250 Matter 300/300 Energy 250/250 System Corruption 4% Temperature Cool (6) Movement Rolling (110) Ox2 Location -10/Mines Parts ------- > --- POWER (1) -------- Ion Engine > --- PROPULSION (2) --- Wheel Wheel > --- UTILITY (2) ------ High-capacity Storage Unit Power Shielding > --- WEAPON (2) ------- Mining Claw > --- INVENTORY (20) --- Ion Engine Light Treads Light Treads Light Treads Compact Wheel Compact Wheel Small Storage Unit High-capacity Storage Unit Small Matter Pod (50) Improved Terrain Scanner Targeting Computer Power Shielding Medium Laser Particle Gun Peak State ------------ > --- POWER ------------ Ion Engine > --- PROPULSION ------- Compact Wheel Compact Wheel > --- UTILITY ---------- High-capacity Storage Unit Power Shielding > --- WEAPON ----------- EM Pulse Gun Assault Rifle > --- INVENTORY -------- Ion Engine Ion Engine Light Treads Light Treads Light Treads Small Storage Unit High-capacity Storage Unit Small Matter Pod Power Shielding Medium Laser [Rating: 8] Favorites ----------- Power Ion Engine Engine Ion Engine Propulsion Compact Wheel Treads Light Treads Leg Aluminum Leg Wheel Compact Wheel Utility High-capacity Storage Unit Storage High-capacity Storage Unit Protection Power Shielding Weapon EM Pulse Gun Energy Gun EM Pulse Gun Ballistic Gun Assault Rifle Slashing Weapon Mining Claw Build | -11 -10 -10 ------- Run | Yrd Mat Min Slots Evolved . | . . . Power . | . . . Propulsion . | . . . Utility . | . . . Weapon . | . . . Parts Attached 16 | . 14 2 Power 2 | . 2 . Engine 2 | . 2 . Core . | . . . Reactor . | . . . Propulsion 8 | . 6 2 Treads 2 | . 2 . Leg . | . . . Wheel 6 | . 4 2 Hover . | . . . Flight . | . . . Utility 2 | . 2 . Device . | . . . Storage 1 | . 1 . Processor . | . . . Hackware . | . . . Protection 1 | . 1 . Artifact . | . . . Weapon 4 | . 4 . Energy Gun 1 | . 1 . Energy Cannon . | . . . Ballistic Gun 2 | . 2 . Ballistic Cannon . | . . . Launcher . | . . . Special Weapon . | . . . Impact Weapon . | . . . Slashing Weapon 1 | . 1 . Piercing Weapon . | . . . Special Melee Weapon . | . . . Unidentified Prototypes . | . . . Corrupted Parts 1 | . 1 . System Corruption 2 | . 2 . Parts Lost 6 | . 5 1 Power 1 | . 1 . Propulsion 2 | . 2 . Utility . | . . . Weapon 3 | . 2 1 Highest Loss Streak 5 | . 5 1 To Critical Strikes . | . . . Average Slot Usage (%) 92 | . 91 97 Engine 13 | . 13 14 Treads 5 | . 6 . Leg 3 | . 4 . Wheel 18 | . 17 28 Storage 14 | . 14 14 Protection 8 | . 7 14 Energy Gun 11 | . 12 11 Ballistic Gun 7 | . 9 . Slashing Weapon 8 | . 7 14 Naked Turns . | . . . Heaviest Build 50 | 14 50 50 Greatest Support 40 | 20 40 32 Greatest Overweight (x) 3 | . 3 2 Average Overweight (x) . | . . 1 Largest Inventory Capacity 20 | . 20 20 Average Capacity 18 | . 18 20 Most Carried 14 | . 13 14 Average Carried 10 | . 9 13 Final Capacity 20 | 8 20 20 Final Carried 14 | 6 13 14 Class Distribution -------------------- 100% | Mutant Dominant Class ---------------- Mutant | -10/Materials Mutant | -10/Mines Resources | -11 -10 -10 ----------- Run | Yrd Mat Min Matter Collected 490 | 200 270 20 Remotely . | . . . Salvage Created 444 | . 414 30 Parts 32 | . 28 4 Haulers Intercepted . | . . . Recyclers Shooed 2 | . 2 . Parts Field Recycled . | . . . Retrieved Matter . | . . . Parts Self-Destructed . | . . . Prevented . | . . . Kills | -11 -10 -10 ------- Run | Yrd Mat Min Combat Hostiles Destroyed 9 | . 9 . Guns 8 | . 8 . AOE 1 | . 1 . Classes Destroyed 5 | . 4 1 Worker 2 | . 2 . Tunneler 1 | . . 1 Recycler 1 | . 1 . Swarmer 3 | . 3 . Grunt 6 | . 6 . Best Kill Streak 5 | . 5 1 Combat Bots Only 2 | . 2 . Max Kills in Single Turn 1 | . 1 1 Gunslinging . | . . . Exploded 1 | . 1 . Melee . | . . . Uniques/NPCs Destroyed . | . . . Combat | -11 -10 -10 -------- Run | Yrd Mat Min Hostile Shots Fired 96 | . 86 10 Missed 21 | . 19 2 Damage Taken 902 | . 812 90 Core 261 | . 205 56 Absorbed by Shields . | . . . Redirected to Shielding 46 | . 46 . Core Remaining (%) 100 | 100 . . Volleys Fired 61 | . 61 . Largest 1 | . 1 . Hottest 40 | . 40 . Shots Fired 62 | . 62 . Gun 62 | . 62 . Cannon . | . . . Launcher . | . . . Special . | . . . Kinetic 35 | . 35 . Thermal . | . . . Explosive . | . . . Electromagnetic 27 | . 27 . Robot Hit Streak 13 | . 13 . Robot Miss Streak 3 | . 3 . Penetration Max . | . . . Secondary Targets . | . . . Shots Hit Robots 48 | . 46 2 Core Hits 21 | . 20 1 Critical Kills . | . . . Critical Parts Destroyed . | . . . Critical Strikes . | . . . Melee Attacks 4 | . 1 3 Impact . | . . . Slashing 4 | . 1 3 Piercing . | . . . Sneak Attacks 1 | . . 1 Combat Hostiles . | . . . Follow-up Attacks . | . . . Damage Inflicted 782 | . 712 70 Guns 616 | . 616 . Cannons . | . . . Explosions 96 | . 96 . Melee 70 | . . 70 Ramming . | . . . Kinetic 362 | . 362 . Thermal 96 | . 96 . Explosive . | . . . Electromagnetic 254 | . 254 . Impact . | . . . Slashing 70 | . . 70 Piercing . | . . . Highest Corruption 4 | . 4 4 Average Corruption 2 | . 2 4 Corruption Purged . | . . . Corruption Blocked . | . . . Effects 6 | . 4 2 Message Errors 3 | . 1 2 Data Loss (minor) 2 | . 2 . Misfires 1 | . 1 . Overload Shots . | . . . Overflow Damage . | . . . Projectiles . | . . . Explosions . | . . . Melee . | . . . Knockbacks . | . . . Impact . | . . . Kinetic . | . . . Secondary . | . . . Self-Inflicted Damage 12 | . 12 . Shots 1 | . 1 . Rammed . | . . . Targets Rammed . | . . . Kicked . | . . . Crushed . | . . . Highest Temperature 60 | . 60 . Average Temperature 29 | . 29 . Received Heat Transfer 453 | . 399 54 Siege Activations . | . . . Robots Corrupted . | . . . Combat Hostiles . | . . . Parts Fried . | . . . Impact Corruptions . | . . . Robots Melted . | . . . Combat Hostiles . | . . . Parts Melted . | . . . Heat Transferred 150 | . 150 . Parts Sabotaged . | . . . Parts Stolen . | . . . Parts Stripped . | . . . Power Chain Reactions 1 | . 1 . Alert | -11 -10 -10 ------- Run | Yrd Mat Min Peak Influence 181 | . 181 41 Initial 36 | . . 36 Average 56 | . 59 38 Maximum Alert Level . | . . . Low Security (%) 100 | . 100 100 Level 1 . | . . . Level 2 . | . . . Level 3 . | . . . Level 4 . | . . . Level 5 . | . . . High Security . | . . . Max Security . | . . . Squads Dispatched 2 | . 2 . Investigation . | . . . Extermination . | . . . Reinforcement 2 | . 2 . Assault . | . . . Garrison . | . . . Intercept . | . . . Searches Triggered . | . . . Construction Impeded . | . . . Haulers Reinforced . | . . . Active Scanning Responses . | . . . Cargo Convoy Interrupts . | . . . Stealth | -11 -10 -10 --------- Run | Yrd Mat Min Distress Signals 1 | . 1 . Communications Jammed . | . . . Distress Signals . | . . . Times Spotted 26 | . 17 9 Peak Tracking Total 17 | . 7 17 Tactical Retreats 1 | . 1 . Traps | -11 -10 -10 ------- Run | Yrd Mat Min Traps Triggered 2 | . 2 . Indirectly . | . . . Trap Hack Attempts . | . . . Triggered . | . . . Disarmed . | . . . Reprogrammed . | . . . Reused . | . . . Traps Extracted . | . . . Installed . | . . . Triggered . | . . . Machines | -11 -10 -10 ---------- Run | Yrd Mat Min Machines Disabled 1 | . 1 . Max in Single Turn 1 | . 1 . Machines Repaired . | . . . Machines Dismantled . | . . . Machines Sabotaged . | . . . Overloaded Fab Kills . | . . . Hacking | -11 -10 -10 --------- Run | Yrd Mat Min Machines Accessed 4 | . 4 . Terminals 4 | . 4 . Fabricators . | . . . Repair Stations . | . . . Recycling Units . | . . . Scanalyzers . | . . . Garrison Access . | . . . Total Hacks 11 | . 11 . Successful 6 | . 6 . Failed 5 | . 5 . Catastrophic 2 | . 2 . Database Lockouts . | . . . Manual 9 | . 9 . Terminals 11 | . 11 . Fabricators . | . . . Repair Stations . | . . . Recycling Units . | . . . Scanalyzers . | . . . Garrison Access . | . . . Terminal Hacks 2 | . 2 . Branch Access Points 1 | . 1 . Zone Layout 1 | . 1 . Fabricator Hacks . | . . . Repair Station Hacks . | . . . Recycling Unit Hacks . | . . . Scanalyzer . | . . . Garrison Access Hacks . | . . . Unauthorized Hacks 4 | . 4 . Terminals 4 | . 4 . Botnet 4 | . 4 . Fabricators . | . . . Repair Stations . | . . . Recycling Units . | . . . Scanalyzers . | . . . Garrison Access . | . . . Data Cores Recovered . | . . . Used . | . . . Hacking Detections 4 | . 4 . Full Trace Events . | . . . Feedback Events . | . . . Feedback Blocked . | . . . Robot Schematics Acquired . | . . . Robots Built . | . . . Authchips . | . . . Time . | . . . Total Robot Build Rating . | . . . Part Schematics Acquired . | . . . Parts Built . | . . . Authchips . | . . . Time . | . . . Total Part Build Rating . | . . . Parts Repaired . | . . . Time . | . . . Parts Recycled . | . . . Recycled Matter . | . . . Retrieved Matter . | . . . Retrieved Components . | . . . Parts Scanalyzed . | . . . Part Schematics Acquired . | . . . Parts Damaged . | . . . Bothacking | -11 -10 -10 ------------ Run | Yrd Mat Min Used RIF Installer . | . . . Robots Hacked . | . . . Non-combat . | . . . Combat . | . . . Robot Hacks Applied . | . . . Relay Couplers Released . | . . . Fabnet Peak Effective % . | . . . Robots Rewired . | . . . Allies Hacked . | . . . Hacks Repelled . | . . . Allies | -11 -10 -10 -------- Run | Yrd Mat Min Total Allies . | . . . Largest Group . | . . . Highest-Rated Group . | . . . Highest-Rated Ally . | . . . Total Orders . | . . . Ally Attacks . | . . . Total Damage . | . . . Kills . | . . . Allies Corrupted . | . . . Allies Melted . | . . . Intel | -11 -10 -10 ------- Run | Yrd Mat Min Robot Analysis Total . | . . . Derelict Logs Recovered . | . . . Drone Launches . | . . . Drone Recoveries . | . . . Exploration | -11 -10 -10 ------------- Run | Yrd Mat Min Turns Passed 659 | . 561 98 Spaces Moved 383 | 1 310 72 Core . | . . . Treads 25 | . 25 . Legs 68 | 1 67 . Wheels 290 | . 218 72 Hover . | . . . Flight . | . . . Fastest Speed 100 | 120 100 110 Average Speed 123 | 120 126 111 Slowest Speed 240 | 120 240 115 Overloaded Moves . | . . . Propulsion Burnouts . | . . . Robots Hopped . | . . . Cave-ins Triggered . | . . . Exploration Rate (%) 21 | 2 44 18 Regions Visited 2 Branch Regions 1 Pre-discovered Areas . | . . . Known Exits Taken 1 | . 1 . Unknown Exits Taken 1 | 1 . . Scrap Searched . | . . . Spaces Dug . | . . . Terrain Destroyed 4 | . 4 . Melee . | . . . Projectile . | . . . AOE 4 | . 4 . Terrain Rammed . | . . . Walls Destroyed . | . . . Machines Disabled . | . . . Actions | -11 -10 -10 --------- Run | Yrd Mat Min Total 499 | . 416 83 Wait 20 | . 16 4 Move 381 | . 309 72 Hop . | . . . Pick Up 10 | . 9 1 Fast Attach 5 | . 5 . Attach 7 | . 7 . Detach 4 | . 4 . Swap 4 | . 2 2 Drop 3 | . 2 1 Fire 61 | . 61 . Melee 4 | . 1 3 Ram . | . . . Kick . | . . . Crush . | . . . Escape Stasis . | . . . Rewire . | . . . Trap . | . . . Miscellaneous . | . . . Route ------- -11/Scrapyard -10/Materials (discovered 3 exits: [Mat] / *Min x2) -10/Mines History --------- Turn | Location | Event 1 | -11/Scrapyard | Discovered new exit (range 0) 1 | -11/Scrapyard | Entered Materials 147 | -10/Materials | Discovered new exit (range 18) 310 | -10/Materials | Build established: Mutant 344 | -10/Materials | Identified exit to Mines 421 | -10/Materials | Core integrity fell below 50% 455 | -10/Materials | Core integrity fell below 20% 486 | -10/Materials | Lost 5 parts (1p2n2w) 562 | -10/Materials | Entered Mines 563 | -10/Mines | Assembled infested the area 568 | -10/Mines | Assisted by a Guerilla fighting off Assembled 660 | -10/Mines | Destroyed by G-34 Mercenary with Small Laser Last Messages --------------- GOAL=ESCAPE Something is scanning the area. 00563_ ALERT: Infestation in the mines, dispatching Demolisher response squad. 00563_ SMSV2&YDRUG0L4D1SU4 AX0AEFQ5 NL% WX 00566_ D1-KUO(h): "I'll hold them off! Go on ahead or try to find another way!" 00566_ HV Slug penetrates T-07 Excavator. 00566_ T-07 Excavator suffers critical hit (Destroy). 00568_ A derelict emerges from the shadows: "You need to get out of here! I've been tracking a group of Assembled to figure out where they're coming from, and they're closing on this area, come on!" 00569_ HV Slug penetrates Wall. 00586_ Sneak attack on T-07 Excavator. 00586_ T-07 Excavator destroyed. 00594_ Acquired Imp. Terrain Scanner. 00597_ Dropped Ion Engine. 00605_ Acquired 20 matter. 00644_ EM Pulse Gun destroyed. 00648_ C>OUGMVDXCENTWMK0U&VCKU31MPN# Map ----- +----------------------------------------------------+ | ?????????????????????????????????????????????????? | | ?????????????????????????????????????????????????? | | ?????????????????????????????????????????????????? | | ?????????????????????????????????????????????????? | | ?????????????????????????????????????????????????? | | ?????????????????????????????????????????????????? | | ?????????????????????????????????????????????????? | | ?????????????????????????????????????????????????? | | ?????????????????????????????????????????????????? | | ?????????????????????????????????????????????????? | | ?????????????????????????????????????????????????? | | ?????????????????????????????????????????????????? | | ?????????????????????????????????????????????????? | | ?????????????????????????????????????????????????? | | ?????????????????????????????????????????????????? | | ?????????????????????????????????????????????????? | | ?????????????????????????????????????????????????? | | ?????????????????????????????????????????????????? | | ?????????????????????????????????????????????????? | | ???????????????????????############??????????????? | | ???????????????????????# #??????????????? | | ???????????????????????# #??????????????? | | ???????????????????????#g ###### #??????????????? | | ???????????????????????#g #????# #??????????????? | | ???????????????????????# #????# #??????????????? | | ???????????????????????# @#????# ##?????????????? | | ???????????????????????# #????# #?????????????? | | ???????????????????????# #????## #?????????????? | | ???????????????????????# #???## #?????????????? | | ???????????????????????# #???# #?????????????? | | ???????????????????????# $#???# #?????????????? | | ???????????????????????# #???# ##????????????? | | ???????????????????????# #???## ###??????????? | | ??????????????????????? #????### ##?????????? | | ??????????????????????? ???????## ##????????? | | ???????????????????????###????????# #????????? | | ???????##?????????????????????????## #????????? | | ?????## ??????????????????????????# ##????????? | | ???### ??????????????????????????# ##?????????? | | ??## ?????????????############## #??????????? | | ??# ?????????????#|*%* #??????????? | | ??# ?????????????# ###############??????????? | | ??? ???####??????# #????????????????????????? | | ????" ?### ######## #????????????????????????? | | #????????????????????????? | | #########????????????????????????? | | ##????????????????????????????????? | | ?# ###?????????????????????????????????? | | ??## # ##???????????????????????????????????? | | ??# #????????????????????????????????????? | +----------------------------------------------------+ Best States ------------- Heat Dissipation 25 Energy Generation 10 Energy Capacity 250 Matter Stores 300 Matter Capacity 300 Sight Range 16 Terrain Scan Density 10 Power Shielding 33 Evasion (%) 55 Recoil Reduction 2 Item Schematics ----------------- None Robot Schematics ------------------ None Fabricated ------------ Nothing Alien Tech Used ----------------- None Achievements -------------- None Challenges ------------ None Game ------ Seed UltimateWaveCarapace Manual? 0 Play Time 00:10:06 Cumulative 91.9 hours Start 2024.04.02 @ 21:25:19 End 2024.04.02 @ 22:03:31 Sessions 1 Manual Loads 0 Difficulty Rogue Special Mode None Game No. 88 Rogue 88 Adventurer 0 Explorer 0 Win Type - Total 2 Types 2/0/0/0/0/0/0/0/0 Lore% 40 Gallery% 59 Achievement% 43 Wizard Run 0 Options --------- Layout 1 ASCII 0 Keyboard 1 Movement Numpad Keybinds 0 Fullscreen 1 Font 32/SmallcapsGlow Map View 77x35 Zoom Use 0% Tactical HUD 1 Map Filters NONE Filters NONE Steam 1 RUN: 906ebf14-660b-4630-9ab6-3b8987ca0487